[Event "*** Titled Tuesday Blitz"]
[Site "Chess.com"]
[Date "2021.03.30"]
[Round "4"]
[White "hleol"]
[Black "MaevskiyNikolay"]
[Result "0-1"]
[WhiteElo "2358"]
[BlackElo "2529"]
[TimeControl "180+1"]
[EndTime "10:39:14 PDT"]
[Termination "MaevskiyNikolay won by resignation"]

1. d4 {[%clk 0:03:00.9]} 1... d5 {[%clk 0:02:49]} 2. c4 {[%clk 0:02:59.8]} 2...
Nc6 {[%clk 0:02:49.6]} 3. cxd5 {[%clk 0:02:56.9]} 3... Qxd5 {[%clk 0:02:50.5]}
4. e3 {[%clk 0:02:57.4]} 4... e5 {[%clk 0:02:50.5]} 5. Nc3 {[%clk 0:02:57.8]}
5... Bb4 {[%clk 0:02:51.1]} 6. Bd2 {[%clk 0:02:58.1]} 6... Bxc3 {[%clk
0:02:51.7]} 7. bxc3 {[%clk 0:02:54]} 7... Qd6 {[%clk 0:02:51.9]} 8. Bd3 {[%clk
0:02:53.8]} 8... Nf6 {[%clk 0:02:47.1]} 9. f3 {[%clk 0:02:52.9]} 9... O-O {[%clk
0:02:46.5]} 10. Ne2 {[%clk 0:02:51.6]} 10... b6 {[%clk 0:02:46.7]} 11. O-O
{[%clk 0:02:51]} 11... Bb7 {[%clk 0:02:45]} 12. Ng3 {[%clk 0:02:40.5]} 12... g6
{[%clk 0:02:45.1]} 13. Qe1 {[%clk 0:01:58.9]} 13... Rfe8 {[%clk 0:02:43.6]} 14.
Qf2 {[%clk 0:01:58.6]} 14... Rad8 {[%clk 0:02:42.5]} 15. Rad1 {[%clk 0:01:52.7]}
15... Na5 {[%clk 0:02:35.4]} 16. e4 {[%clk 0:01:22.8]} 16... c5 {[%clk 0:02:30]}
17. d5 {[%clk 0:01:21.9]} 17... c4 {[%clk 0:02:26.9]} 18. Bc2 {[%clk 0:01:21.8]}
18... Nd7 {[%clk 0:02:26.2]} 19. Bg5 {[%clk 0:01:20.7]} 19... f6 {[%clk
0:02:25.6]} 20. Be3 {[%clk 0:01:19.8]} 20... Qa3 {[%clk 0:02:11.5]} 21. Qd2
{[%clk 0:01:13.1]} 21... Bc8 {[%clk 0:01:58.7]} 22. f4 {[%clk 0:01:13]} 22...
Qe7 {[%clk 0:01:55.6]} 23. f5 {[%clk 0:01:11.1]} 23... g5 {[%clk 0:01:53.8]} 24.
Bxg5 {[%clk 0:01:06.8]} 24... fxg5 {[%clk 0:01:53.6]} 25. f6 {[%clk 0:01:07.2]}
25... Qf7 {[%clk 0:01:42.1]} 26. Qxg5+ {[%clk 0:01:07.5]} 26... Kh8 {[%clk
0:01:40.5]} 27. Nh5 {[%clk 0:01:05.5]} 27... Rg8 {[%clk 0:01:39.3]} 28. Qh4
{[%clk 0:01:04.3]} 28... Nf8 {[%clk 0:01:34.4]} 29. Ng7 {[%clk 0:01:01.1]} 29...
Nb7 {[%clk 0:01:26.3]} 30. Rde1 {[%clk 0:00:56.6]} 30... Nd6 {[%clk 0:01:23.7]}
31. Bd1 {[%clk 0:00:55.3]} 31... Ng6 {[%clk 0:01:19.1]} 32. Qh6 {[%clk
0:00:54.2]} 32... Rxg7 {[%clk 0:01:16.5]} 33. fxg7+ {[%clk 0:00:53.7]} 33...
Qxg7 {[%clk 0:01:16.9]} 34. Qg5 {[%clk 0:00:48.2]} 34... Rg8 {[%clk 0:01:07.1]}
35. Qf6 {[%clk 0:00:43.4]} 35... Nf4 {[%clk 0:01:02.4]} 36. Qxg7+ {[%clk
0:00:42.4]} 36... Rxg7 {[%clk 0:01:02.3]} 37. g3 {[%clk 0:00:43]} 37... Bh3
{[%clk 0:00:58.7]} 38. Rf3 {[%clk 0:00:42.2]} 38... Bg4 {[%clk 0:00:57]} 39.
Rfe3 {[%clk 0:00:42.1]} 39... Nd3 {[%clk 0:00:49.5]} 40. Rf1 {[%clk 0:00:40.2]}
40... Bxd1 {[%clk 0:00:48.9]} 41. Rxd1 {[%clk 0:00:39.4]} 41... Rg4 {[%clk
0:00:48.4]} 42. Rf1 {[%clk 0:00:34.1]} 42... Kg7 {[%clk 0:00:46.9]} 43. h3
{[%clk 0:00:28.7]} 43... Rxe4 {[%clk 0:00:46.7]} 44. Rxe4 {[%clk 0:00:29]} 44...
Nxe4 {[%clk 0:00:46.9]} 45. Kg2 {[%clk 0:00:29.9]} 45... Nd6 {[%clk 0:00:43.4]}
46. Kf3 {[%clk 0:00:28.4]} 46... Kf6 {[%clk 0:00:40]} 47. Ke3+ {[%clk
0:00:28.1]} 47... Ke7 {[%clk 0:00:40.4]} 48. g4 {[%clk 0:00:26.2]} 48... Nf4
{[%clk 0:00:38.8]} 49. h4 {[%clk 0:00:25.4]} 49... Nxd5+ {[%clk 0:00:38.7]} 50.
Kd2 {[%clk 0:00:25.8]} 50... Ne4+ {[%clk 0:00:37.9]} 51. Kc2 {[%clk 0:00:25.7]}
51... Ne3+ {[%clk 0:00:38]} 52. Kb2 {[%clk 0:00:25.1]} 52... Nxf1 {[%clk
0:00:38.3]} 0-1

[Event "*** Titled Tuesday Blitz"]
[Site "Chess.com"]
[Date "2021.03.30"]
[Round "4"]
[White "chenrip"]
[Black "pavelalexandru07"]
[Result "1-0"]
[WhiteElo "2470"]
[BlackElo "2289"]
[TimeControl "180+1"]
[EndTime "10:39:14 PDT"]
[Termination "chenrip won by resignation"]

1. e4 {[%clk 0:03:00.2]} 1... c5 {[%clk 0:02:59.4]} 2. Nf3 {[%clk 0:02:59.2]}
2... d6 {[%clk 0:02:59.4]} 3. Bb5+ {[%clk 0:02:58.8]} 3... Bd7 {[%clk
0:02:58.6]} 4. a4 {[%clk 0:02:59.1]} 4... Nf6 {[%clk 0:02:53.9]} 5. Nc3 {[%clk
0:02:58.8]} 5... e6 {[%clk 0:02:51.3]} 6. O-O {[%clk 0:02:52.2]} 6... Nc6 {[%clk
0:02:50.7]} 7. d4 {[%clk 0:02:51.4]} 7... cxd4 {[%clk 0:02:49.1]} 8. Nxd4 {[%clk
0:02:51.5]} 8... a6 {[%clk 0:02:48.5]} 9. Bxc6 {[%clk 0:02:50.9]} 9... bxc6
{[%clk 0:02:39]} 10. e5 {[%clk 0:02:50.9]} 10... dxe5 {[%clk 0:02:38.5]} 11. Nf3
{[%clk 0:02:50.6]} 11... Qc7 {[%clk 0:02:37.1]} 12. Re1 {[%clk 0:02:50.1]} 12...
Bd6 {[%clk 0:02:37.1]} 13. Qe2 {[%clk 0:02:49.5]} 13... O-O {[%clk 0:01:42.8]}
14. Nxe5 {[%clk 0:02:45.5]} 14... Nd5 {[%clk 0:01:41.7]} 15. Nd1 {[%clk
0:02:18.6]} 15... Rfd8 {[%clk 0:01:20.6]} 16. h3 {[%clk 0:01:57.9]} 16... Be8
{[%clk 0:01:06.9]} 17. Nc4 {[%clk 0:01:56.2]} 17... Bc5 {[%clk 0:00:53.1]} 18.
Bg5 {[%clk 0:01:49.7]} 18... f6 {[%clk 0:00:41.3]} 19. Bh4 {[%clk 0:01:49.3]}
19... Bf7 {[%clk 0:00:41]} 20. Nde3 {[%clk 0:01:38.6]} 20... Nxe3 {[%clk
0:00:23.8]} 21. Nxe3 {[%clk 0:01:37.9]} 21... Qb6 {[%clk 0:00:21.4]} 22. Nc4
{[%clk 0:01:33.4]} 22... Qc7 {[%clk 0:00:20.5]} 23. c3 {[%clk 0:01:20.6]} 23...
e5 {[%clk 0:00:19.9]} 24. b4 {[%clk 0:01:19.3]} 24... Ba7 {[%clk 0:00:19.6]} 25.
Rad1 {[%clk 0:01:16.7]} 25... c5 {[%clk 0:00:15]} 26. b5 {[%clk 0:01:10.4]}
26... axb5 {[%clk 0:00:15]} 27. axb5 {[%clk 0:01:10.1]} 27... Rab8 {[%clk
0:00:15.2]} 28. Rxd8+ {[%clk 0:01:06]} 28... Qxd8 {[%clk 0:00:14.9]} 29. Nxe5
{[%clk 0:01:04.3]} 29... Qe7 {[%clk 0:00:06.2]} 30. Nc6 {[%clk 0:00:59.9]} 30...
Qxe2 {[%clk 0:00:05.7]} 31. Rxe2 {[%clk 0:00:59.6]} 31... Rb7 {[%clk 0:00:04.1]}
32. Rb2 {[%clk 0:00:19.8]} 32... Bc4 {[%clk 0:00:03.4]} 33. Nxa7 {[%clk
0:00:19.5]} 33... Rxa7 {[%clk 0:00:03.6]} 34. b6 {[%clk 0:00:19.5]} 34... Rb7
{[%clk 0:00:04.1]} 35. Bg3 {[%clk 0:00:19.6]} 35... Kf7 {[%clk 0:00:02.5]} 36.
Bc7 {[%clk 0:00:19.8]} 36... Bd5 {[%clk 0:00:02.8]} 37. Rd2 {[%clk 0:00:19.2]}
37... Ke6 {[%clk 0:00:03.3]} 38. f4 {[%clk 0:00:18]} 38... Bc6 {[%clk
0:00:03.5]} 39. Rd6+ {[%clk 0:00:17.5]} 39... Kf5 {[%clk 0:00:03.7]} 1-0

[Event "*** Titled Tuesday Blitz"]
[Site "Chess.com"]
[Date "2021.03.30"]
[Round "4"]
[White "SanchezKelvin"]
[Black "adriangschnitzer"]
[Result "0-1"]
[WhiteElo "2620"]
[BlackElo "2503"]
[TimeControl "180+1"]
[EndTime "10:39:16 PDT"]
[Termination "adriangschnitzer won by resignation"]

1. d4 {[%clk 0:02:44.7]} 1... Nf6 {[%clk 0:02:57]} 2. c4 {[%clk 0:02:44.3]} 2...
c5 {[%clk 0:02:57.5]} 3. Nf3 {[%clk 0:02:42]} 3... cxd4 {[%clk 0:02:57]} 4. Nxd4
{[%clk 0:02:42.1]} 4... Nc6 {[%clk 0:02:57.5]} 5. Nc3 {[%clk 0:02:41.1]} 5... e6
{[%clk 0:02:57.4]} 6. g3 {[%clk 0:02:40.8]} 6... Qb6 {[%clk 0:02:56.9]} 7. Nxc6
{[%clk 0:02:35.4]} 7... Qxc6 {[%clk 0:02:56]} 8. f3 {[%clk 0:02:32.1]} 8... Qxc4
{[%clk 0:02:55.3]} 9. e4 {[%clk 0:02:30.7]} 9... Qc7 {[%clk 0:02:54.6]} 10. Nb5
{[%clk 0:02:23.3]} 10... Bb4+ {[%clk 0:02:53.2]} 11. Bd2 {[%clk 0:02:22.6]}
11... Bxd2+ {[%clk 0:02:50.1]} 12. Qxd2 {[%clk 0:02:20.4]} 12... Qb6 {[%clk
0:02:49.5]} 13. Nd6+ {[%clk 0:02:13]} 13... Ke7 {[%clk 0:02:49.5]} 14. Nc4
{[%clk 0:02:11.1]} 14... Qc7 {[%clk 0:02:46.2]} 15. e5 {[%clk 0:02:01.8]} 15...
Nd5 {[%clk 0:02:40.3]} 16. Rc1 {[%clk 0:01:59.5]} 16... h6 {[%clk 0:02:32.5]}
17. Bd3 {[%clk 0:01:47.6]} 17... b5 {[%clk 0:02:30]} 18. Nd6 {[%clk 0:01:46.1]}
18... Qb6 {[%clk 0:02:24]} 19. Be4 {[%clk 0:01:37.5]} 19... Bb7 {[%clk
0:02:18.1]} 20. Qf2 {[%clk 0:01:33.4]} 20... Qxf2+ {[%clk 0:02:14.1]} 21. Kxf2
{[%clk 0:01:33.1]} 21... Bc6 {[%clk 0:02:15]} 22. Rhd1 {[%clk 0:01:28.2]} 22...
Rhb8 {[%clk 0:02:06.5]} 23. f4 {[%clk 0:01:25.3]} 23... Nb4 {[%clk 0:01:43.7]}
24. a3 {[%clk 0:01:16.1]} 24... Bxe4 {[%clk 0:01:41.9]} 25. axb4 {[%clk
0:01:15.8]} 25... Bd5 {[%clk 0:01:40]} 26. Ra1 {[%clk 0:01:13.8]} 26... Rb6
{[%clk 0:01:36.9]} 27. Ra5 {[%clk 0:01:11]} 27... a6 {[%clk 0:01:28.4]} 28. Rc1
{[%clk 0:01:10.7]} 28... Bc6 {[%clk 0:01:21.4]} 29. Ke3 {[%clk 0:01:08.1]} 29...
f6 {[%clk 0:01:21.2]} 30. Rf1 {[%clk 0:01:04.9]} 30... Rf8 {[%clk 0:01:16.9]}
31. Raa1 {[%clk 0:01:04]} 31... fxe5 {[%clk 0:01:11.2]} 32. fxe5 {[%clk
0:01:03.4]} 32... Rbb8 {[%clk 0:01:11.6]} 33. Rxf8 {[%clk 0:01:01.6]} 33... Rxf8
{[%clk 0:01:12.5]} 34. Rxa6 {[%clk 0:00:55.4]} 34... Rf3+ {[%clk 0:01:11.9]} 35.
Ke2 {[%clk 0:00:54.8]} 35... Rb3 {[%clk 0:01:11.5]} 36. Rb6 {[%clk 0:00:54]}
36... Rxb2+ {[%clk 0:01:08.5]} 37. Ke3 {[%clk 0:00:49.1]} 37... Rb3+ {[%clk
0:01:08.3]} 38. Kd2 {[%clk 0:00:48.6]} 38... Rxb4 {[%clk 0:01:08.2]} 39. Rb8
{[%clk 0:00:28.3]} 39... Rd4+ {[%clk 0:01:02.5]} 40. Kc3 {[%clk 0:00:28.1]}
40... Rxd6 {[%clk 0:01:01.1]} 41. exd6+ {[%clk 0:00:29]} 41... Kxd6 {[%clk
0:01:01.8]} 42. Rg8 {[%clk 0:00:29]} 42... Kc5 {[%clk 0:00:56.9]} 43. Rxg7
{[%clk 0:00:28.6]} 43... b4+ {[%clk 0:00:57]} 44. Kd2 {[%clk 0:00:27.7]} 44...
Kc4 {[%clk 0:00:54.5]} 45. g4 {[%clk 0:00:27.9]} 45... b3 {[%clk 0:00:52.3]} 46.
Rf7 {[%clk 0:00:18.9]} 46... Be4 {[%clk 0:00:50.2]} 47. Rxd7 {[%clk 0:00:15.3]}
47... b2 {[%clk 0:00:49.9]} 48. Rc7+ {[%clk 0:00:14.9]} 48... Kd4 {[%clk
0:00:45]} 49. Rd7+ {[%clk 0:00:14.8]} 49... Ke5 {[%clk 0:00:44.2]} 0-1

[Event "*** Titled Tuesday Blitz"]
[Site "Chess.com"]
[Date "2021.03.30"]
[Round "4"]
[White "Schwarzschidl"]
[Black "lukazz029"]
[Result "1-0"]
[WhiteElo "2489"]
[BlackElo "2167"]
[TimeControl "180+1"]
[EndTime "10:39:19 PDT"]
[Termination "Schwarzschidl won by checkmate"]

1. e4 {[%clk 0:03:00.3]} 1... c5 {[%clk 0:02:59.4]} 2. Nf3 {[%clk 0:03:00.5]}
2... d6 {[%clk 0:02:54.3]} 3. d4 {[%clk 0:03:00.5]} 3... cxd4 {[%clk 0:02:55.2]}
4. Nxd4 {[%clk 0:03:01.3]} 4... Nf6 {[%clk 0:02:54.8]} 5. Nc3 {[%clk 0:03:01.9]}
5... a6 {[%clk 0:02:53.8]} 6. Bg5 {[%clk 0:03:02.4]} 6... e6 {[%clk 0:02:52.3]}
7. f3 {[%clk 0:03:02.9]} 7... Qc7 {[%clk 0:02:49.7]} 8. Qd2 {[%clk 0:03:03.5]}
8... Nbd7 {[%clk 0:02:49.7]} 9. O-O-O {[%clk 0:03:04.1]} 9... b5 {[%clk
0:02:46.9]} 10. g4 {[%clk 0:03:04.6]} 10... Nb6 {[%clk 0:02:43.7]} 11. h4 {[%clk
0:03:05.1]} 11... Nfd7 {[%clk 0:02:42.8]} 12. Bd3 {[%clk 0:03:04.5]} 12... Ne5
{[%clk 0:02:42.2]} 13. Kb1 {[%clk 0:03:04.3]} 13... Rb8 {[%clk 0:02:41]} 14. Qg2
{[%clk 0:02:52.9]} 14... Nec4 {[%clk 0:02:30.8]} 15. Bc1 {[%clk 0:02:51.5]}
15... b4 {[%clk 0:02:29.9]} 16. Nce2 {[%clk 0:02:50.9]} 16... Be7 {[%clk
0:02:16.3]} 17. g5 {[%clk 0:02:45.3]} 17... Na4 {[%clk 0:02:09.5]} 18. h5 {[%clk
0:01:57.6]} 18... e5 {[%clk 0:01:38.9]} 19. Nb3 {[%clk 0:01:45]} 19... Be6
{[%clk 0:01:33.9]} 20. f4 {[%clk 0:01:38.7]} 20... exf4 {[%clk 0:01:30.1]} 21.
Nxf4 {[%clk 0:01:39.6]} 21... a5 {[%clk 0:01:12.7]} 22. g6 {[%clk 0:01:36.9]}
22... Nab6 {[%clk 0:01:01.5]} 23. Nd4 {[%clk 0:01:22.4]} 23... Na3+ {[%clk
0:00:45.4]} 24. Ka1 {[%clk 0:01:16.9]} 24... Nac4 {[%clk 0:00:36.2]} 25. Nfxe6
{[%clk 0:01:13.7]} 25... fxe6 {[%clk 0:00:36.2]} 26. Nxe6 {[%clk 0:01:14.6]}
26... Qd7 {[%clk 0:00:32.9]} 27. Nxg7+ {[%clk 0:01:14.5]} 27... Kd8 {[%clk
0:00:33.5]} 28. Nf5 {[%clk 0:01:08.8]} 28... Bf6 {[%clk 0:00:32.6]} 29. g7
{[%clk 0:00:55.9]} 29... Rg8 {[%clk 0:00:31.9]} 30. Bg5 {[%clk 0:00:56.5]} 30...
Qe6 {[%clk 0:00:28]} 31. Bxc4 {[%clk 0:00:20.2]} 31... Nxc4 {[%clk 0:00:23.5]}
32. Bxf6+ {[%clk 0:00:20.4]} 32... Qxf6 {[%clk 0:00:22.6]} 33. Rd4 {[%clk
0:00:20.9]} 33... Ne3 {[%clk 0:00:16.2]} 34. Qf2 {[%clk 0:00:13.1]} 34... Nxf5
{[%clk 0:00:11.3]} 35. exf5 {[%clk 0:00:13.8]} 35... Rxg7 {[%clk 0:00:10.3]} 36.
Rhd1 {[%clk 0:00:14.5]} 36... Kc7 {[%clk 0:00:10]} 37. Rxd6 {[%clk 0:00:11.2]}
37... Qe6 {[%clk 0:00:09.9]} 38. Rxe6 {[%clk 0:00:11.2]} 38... Rd7 {[%clk
0:00:09]} 39. Qc5+ {[%clk 0:00:11.5]} 39... Kd8 {[%clk 0:00:08.7]} 40. Rxd7+
{[%clk 0:00:11.9]} 40... Kxd7 {[%clk 0:00:08.9]} 41. Re7+ {[%clk 0:00:12.8]}
41... Kd8 {[%clk 0:00:08.9]} 42. Qc7# {[%clk 0:00:13.7]} 1-0

[Event "*** Titled Tuesday Blitz"]
[Site "Chess.com"]
[Date "2021.03.30"]
[Round "4"]
[White "PavelChernomordik"]
[Black "Vincent_Vega95"]
[Result "0-1"]
[WhiteElo "2368"]
[BlackElo "2724"]
[TimeControl "180+1"]
[EndTime "10:39:19 PDT"]
[Termination "Vincent_Vega95 won on time"]

1. e4 {[%clk 0:03:00.9]} 1... c5 {[%clk 0:03:00]} 2. Nc3 {[%clk 0:03:00.3]} 2...
e6 {[%clk 0:02:59.5]} 3. f4 {[%clk 0:02:59.9]} 3... d5 {[%clk 0:02:59.8]} 4. Nf3
{[%clk 0:02:59.6]} 4... Nf6 {[%clk 0:03:00.1]} 5. e5 {[%clk 0:02:58.8]} 5...
Nfd7 {[%clk 0:02:59.6]} 6. g3 {[%clk 0:02:58.6]} 6... Be7 {[%clk 0:02:54.6]} 7.
Bg2 {[%clk 0:02:58.3]} 7... O-O {[%clk 0:02:55.5]} 8. O-O {[%clk 0:02:57.9]}
8... Nc6 {[%clk 0:02:54.1]} 9. Qe2 {[%clk 0:02:56.4]} 9... Rb8 {[%clk
0:02:53.4]} 10. d3 {[%clk 0:02:55.8]} 10... b5 {[%clk 0:02:47.3]} 11. f5 {[%clk
0:02:42.4]} 11... b4 {[%clk 0:02:44.7]} 12. fxe6 {[%clk 0:02:41.1]} 12... fxe6
{[%clk 0:02:44.2]} 13. Nd1 {[%clk 0:02:39.5]} 13... Nd4 {[%clk 0:02:37.7]} 14.
Nxd4 {[%clk 0:02:34]} 14... Rxf1+ {[%clk 0:02:38.2]} 15. Bxf1 {[%clk 0:02:26.8]}
15... cxd4 {[%clk 0:02:39.1]} 16. Bh3 {[%clk 0:02:25.5]} 16... Nf8 {[%clk
0:02:32.9]} 17. Nf2 {[%clk 0:02:22.5]} 17... Ng6 {[%clk 0:02:30.9]} 18. Bd2
{[%clk 0:02:06.2]} 18... Qc7 {[%clk 0:02:30.4]} 19. Bf4 {[%clk 0:01:59.2]} 19...
Bd7 {[%clk 0:02:27.8]} 20. Bg2 {[%clk 0:01:33.1]} 20... Rf8 {[%clk 0:02:21.1]}
21. Nh3 {[%clk 0:01:30.3]} 21... a5 {[%clk 0:02:13.6]} 22. Rf1 {[%clk
0:01:29.4]} 22... a4 {[%clk 0:02:08.8]} 23. Rf2 {[%clk 0:01:28.2]} 23... Rf5
{[%clk 0:02:04]} 24. g4 {[%clk 0:01:01.1]} 24... Nxf4 {[%clk 0:01:55]} 25. Nxf4
{[%clk 0:01:00.5]} 25... Rxe5 {[%clk 0:01:52.8]} 26. Qf3 {[%clk 0:00:53.6]}
26... Re3 {[%clk 0:01:32.2]} 27. Nxd5 {[%clk 0:00:52.6]} 27... Rxf3 {[%clk
0:01:32.3]} 28. Nxc7 {[%clk 0:00:51.6]} 28... Rxf2 {[%clk 0:01:32.6]} 29. Kxf2
{[%clk 0:00:51.2]} 29... Bd6 {[%clk 0:01:30.2]} 30. Na8 {[%clk 0:00:46.3]} 30...
Bc5 {[%clk 0:01:16.1]} 31. Nc7 {[%clk 0:00:35.9]} 31... Kf7 {[%clk 0:01:16]} 32.
Na6 {[%clk 0:00:33.1]} 32... Bd6 {[%clk 0:01:15.8]} 33. Bb7 {[%clk 0:00:27.2]}
33... Kf6 {[%clk 0:01:07]} 34. h4 {[%clk 0:00:26]} 34... Ke5 {[%clk 0:01:01]}
35. Kf3 {[%clk 0:00:24.4]} 35... Be8 {[%clk 0:00:57.3]} 36. h5 {[%clk
0:00:17.8]} 36... g6 {[%clk 0:00:55.6]} 37. h6 {[%clk 0:00:16.9]} 37... g5
{[%clk 0:00:55]} 38. Be4 {[%clk 0:00:14.9]} 38... Kf6 {[%clk 0:00:50]} 39. Bxh7
{[%clk 0:00:13.6]} 39... Bb5 {[%clk 0:00:50.4]} 40. Be4 {[%clk 0:00:10.6]} 40...
Bxa6 {[%clk 0:00:50.4]} 41. Bc6 {[%clk 0:00:09.2]} 41... b3 {[%clk 0:00:45.8]}
42. axb3 {[%clk 0:00:08.9]} 42... axb3 {[%clk 0:00:46.7]} 43. cxb3 {[%clk
0:00:08.2]} 43... Bxd3 {[%clk 0:00:47.1]} 44. Be4 {[%clk 0:00:07.1]} 44... Bxe4+
{[%clk 0:00:46.8]} 45. Kxe4 {[%clk 0:00:06.8]} 45... e5 {[%clk 0:00:47.3]} 46.
b4 {[%clk 0:00:04.3]} 46... Bxb4 {[%clk 0:00:46.8]} 47. b3 {[%clk 0:00:02.3]}
47... Kg6 {[%clk 0:00:46.6]} 0-1

[Event "*** Titled Tuesday Blitz"]
[Site "Chess.com"]
[Date "2021.03.30"]
[Round "4"]
[White "Kolle05"]
[Black "c63_amg"]
[Result "0-1"]
[WhiteElo "2366"]
[BlackElo "2705"]
[TimeControl "180+1"]
[EndTime "10:39:19 PDT"]
[Termination "c63_amg won by resignation"]

1. e4 {[%clk 0:03:00.9]} 1... c5 {[%clk 0:02:53.2]} 2. Nf3 {[%clk 0:03:01.1]}
2... d6 {[%clk 0:02:53]} 3. Bb5+ {[%clk 0:03:00.2]} 3... Nd7 {[%clk 0:02:51.8]}
4. O-O {[%clk 0:02:59.7]} 4... a6 {[%clk 0:02:51]} 5. Bd3 {[%clk 0:02:59.2]}
5... Ngf6 {[%clk 0:02:50.3]} 6. Re1 {[%clk 0:02:59.1]} 6... g6 {[%clk
0:02:50.9]} 7. c3 {[%clk 0:02:59.1]} 7... Bg7 {[%clk 0:02:51.4]} 8. Bc2 {[%clk
0:02:59]} 8... O-O {[%clk 0:02:49.9]} 9. d4 {[%clk 0:02:58.1]} 9... cxd4 {[%clk
0:02:50.8]} 10. cxd4 {[%clk 0:02:58.3]} 10... b5 {[%clk 0:02:51.7]} 11. Nbd2
{[%clk 0:02:56.7]} 11... Bb7 {[%clk 0:02:51.3]} 12. a4 {[%clk 0:02:56.8]} 12...
Qb6 {[%clk 0:02:40.4]} 13. a5 {[%clk 0:02:52]} 13... Qc7 {[%clk 0:02:26.5]} 14.
Nb3 {[%clk 0:02:36.1]} 14... Rac8 {[%clk 0:02:23.3]} 15. Bd3 {[%clk 0:02:33.9]}
15... e5 {[%clk 0:02:05.5]} 16. Bg5 {[%clk 0:01:44.3]} 16... h6 {[%clk
0:02:01.9]} 17. Rc1 {[%clk 0:01:43]} 17... Qb8 {[%clk 0:01:57.3]} 18. Bd2 {[%clk
0:01:42.6]} 18... Nh5 {[%clk 0:01:43.6]} 19. Bb1 {[%clk 0:01:29]} 19... Nf4
{[%clk 0:01:33.9]} 20. Bxf4 {[%clk 0:01:25.1]} 20... exf4 {[%clk 0:01:34.8]} 21.
Qd2 {[%clk 0:01:25.8]} 21... g5 {[%clk 0:01:19.8]} 22. h4 {[%clk 0:00:52.7]}
22... Rxc1 {[%clk 0:01:08]} 23. Rxc1 {[%clk 0:00:49.9]} 23... Qd8 {[%clk
0:01:08.3]} 24. hxg5 {[%clk 0:00:37.2]} 24... hxg5 {[%clk 0:01:09.2]} 25. Nh2
{[%clk 0:00:35.3]} 25... Nf6 {[%clk 0:00:56.3]} 26. f3 {[%clk 0:00:34.7]} 26...
Qd7 {[%clk 0:00:48.3]} 27. d5 {[%clk 0:00:24.1]} 27... Rc8 {[%clk 0:00:39.4]}
28. Rxc8+ {[%clk 0:00:19.7]} 28... Qxc8 {[%clk 0:00:40.3]} 29. Qc2 {[%clk
0:00:19.9]} 29... Qd8 {[%clk 0:00:32.6]} 30. Nf1 {[%clk 0:00:13.9]} 30... Nd7
{[%clk 0:00:30.3]} 31. Nfd2 {[%clk 0:00:11.3]} 31... Ne5 {[%clk 0:00:30.3]} 32.
Nd4 {[%clk 0:00:09.4]} 32... Qxa5 {[%clk 0:00:24.4]} 33. Kh2 {[%clk 0:00:04.2]}
33... Qd8 {[%clk 0:00:23.9]} 34. N2b3 {[%clk 0:00:03.2]} 34... g4 {[%clk
0:00:22.6]} 35. Kg1 {[%clk 0:00:02.4]} 35... Qh4 {[%clk 0:00:19.8]} 36. Nc6
{[%clk 0:00:02]} 36... Qe1+ {[%clk 0:00:14.6]} 37. Kh2 {[%clk 0:00:02.2]} 37...
g3+ {[%clk 0:00:14.3]} 38. Kh3 {[%clk 0:00:03.1]} 0-1

[Event "*** Titled Tuesday Blitz"]
[Site "Chess.com"]
[Date "2021.03.30"]
[Round "4"]
[White "Artyom_ChessMate"]
[Black "DFeco"]
[Result "1-0"]
[WhiteElo "2543"]
[BlackElo "2316"]
[TimeControl "180+1"]
[EndTime "10:39:20 PDT"]
[Termination "Artyom_ChessMate won by resignation"]

1. e4 {[%clk 0:03:00.9]} 1... e5 {[%clk 0:02:59.7]} 2. Nf3 {[%clk 0:03:00.6]}
2... Nc6 {[%clk 0:02:59.5]} 3. Bb5 {[%clk 0:02:59.7]} 3... g6 {[%clk 0:02:59.3]}
4. d4 {[%clk 0:02:56.8]} 4... exd4 {[%clk 0:02:56.7]} 5. c3 {[%clk 0:02:57.1]}
5... d3 {[%clk 0:02:56]} 6. Bxd3 {[%clk 0:02:54.3]} 6... Bg7 {[%clk 0:02:55.5]}
7. O-O {[%clk 0:02:54.8]} 7... Nge7 {[%clk 0:02:54.8]} 8. Bc2 {[%clk 0:02:48.3]}
8... O-O {[%clk 0:02:53.5]} 9. Bg5 {[%clk 0:02:47.8]} 9... h6 {[%clk 0:02:51.5]}
10. Bh4 {[%clk 0:02:26.6]} 10... d6 {[%clk 0:02:50.1]} 11. Nbd2 {[%clk
0:02:18.7]} 11... Be6 {[%clk 0:02:41.9]} 12. Nb3 {[%clk 0:02:16.8]} 12... Qd7
{[%clk 0:02:32.5]} 13. Nbd4 {[%clk 0:02:15.5]} 13... Bg4 {[%clk 0:02:32.1]} 14.
h3 {[%clk 0:02:15.1]} 14... Nxd4 {[%clk 0:02:25.5]} 15. cxd4 {[%clk 0:02:09.9]}
15... Bxf3 {[%clk 0:02:24.2]} 16. Qxf3 {[%clk 0:02:09.2]} 16... g5 {[%clk
0:02:18.3]} 17. Bg3 {[%clk 0:02:07]} 17... Bxd4 {[%clk 0:02:15.1]} 18. Bb3
{[%clk 0:02:06.9]} 18... Bg7 {[%clk 0:02:07.1]} 19. Rad1 {[%clk 0:02:02.7]}
19... Ng6 {[%clk 0:02:04.7]} 20. Qh5 {[%clk 0:01:54.4]} 20... Qe7 {[%clk
0:01:45.6]} 21. Qxg6 {[%clk 0:01:51.1]} 21... Kh8 {[%clk 0:01:39.2]} 22. Qf5
{[%clk 0:01:49]} 22... Rad8 {[%clk 0:01:36.7]} 23. f4 {[%clk 0:01:47.9]} 23...
Bxb2 {[%clk 0:01:31.6]} 24. fxg5 {[%clk 0:01:46.5]} 24... hxg5 {[%clk 0:01:30]}
25. Qg4 {[%clk 0:01:43.9]} 25... Bg7 {[%clk 0:01:25]} 26. Rf5 {[%clk 0:01:42.6]}
26... Bh6 {[%clk 0:01:09.3]} 27. Rdf1 {[%clk 0:01:40]} 27... f6 {[%clk
0:01:04.9]} 28. h4 {[%clk 0:01:21.1]} 28... gxh4 {[%clk 0:00:56.6]} 29. Bxh4
{[%clk 0:01:10.7]} 29... Be3+ {[%clk 0:00:49.2]} 30. Kh1 {[%clk 0:01:09.1]}
30... Bg5 {[%clk 0:00:35.4]} 31. Qh5+ {[%clk 0:00:45.7]} 31... Kg7 {[%clk
0:00:30.7]} 32. Bxg5 {[%clk 0:00:41.2]} 32... Rh8 {[%clk 0:00:29.3]} 33. Bxf6+
{[%clk 0:00:34.2]} 33... Qxf6 {[%clk 0:00:24.7]} 34. Rxf6 {[%clk 0:00:35.1]}
34... Rxh5+ {[%clk 0:00:24.2]} 35. Kg1 {[%clk 0:00:36]} 35... Re5 {[%clk
0:00:18]} 36. Rf7+ {[%clk 0:00:36]} 36... Kh8 {[%clk 0:00:17.8]} 37. Rxc7 {[%clk
0:00:32.7]} 37... Rxe4 {[%clk 0:00:18.1]} 38. Rff7 {[%clk 0:00:33.6]} 38... Rh4
{[%clk 0:00:17.9]} 39. Rxb7 {[%clk 0:00:30.7]} 39... d5 {[%clk 0:00:17.7]} 40.
Rxa7 {[%clk 0:00:29.7]} 40... d4 {[%clk 0:00:17.8]} 41. Rad7 {[%clk 0:00:29.9]}
41... Rxd7 {[%clk 0:00:16.7]} 42. Rxd7 {[%clk 0:00:30.8]} 42... Rf4 {[%clk
0:00:15.7]} 43. g3 {[%clk 0:00:30.5]} 43... Rg4 {[%clk 0:00:15.4]} 44. Kf2
{[%clk 0:00:30.5]} 44... Re4 {[%clk 0:00:14.6]} 45. Rh7+ {[%clk 0:00:28.7]}
45... Kxh7 {[%clk 0:00:12.9]} 46. Bc2 {[%clk 0:00:29.6]} 46... Kg7 {[%clk
0:00:12.5]} 47. Bxe4 {[%clk 0:00:29.7]} 47... Kf6 {[%clk 0:00:13.1]} 48. Bd3
{[%clk 0:00:30.6]} 48... Ke5 {[%clk 0:00:12.7]} 49. Kf3 {[%clk 0:00:31.5]} 49...
Kd5 {[%clk 0:00:12.9]} 50. a4 {[%clk 0:00:32.4]} 1-0